[Event "Titled Tuesday Blitz April 19 Early 2022"]
[White "Barbashin, Igor"]
[Black "Dauner, Benedikt"]
[WhiteFideId "4155718"]
[BlackFideId "16225899"]
[WhiteElo "2138"]
[BlackElo "2230"]
[Result "1-0"]
[Round "06"]
[TimeControl "180+1"]
[Date "2022.04.19"]
[WhiteClock "0:00:54"]
[BlackClock "0:00:27"]

1. d4 {[%clk 0:03:00]}  Nf6 {[%clk 0:01:56]} 2. c4 {[%clk 0:02:58]}  Nc6 {[%clk 0:01:56]} 3. e3 {[%clk 0:02:57]}  e5 {[%clk 0:01:55]} 4. d5 {[%clk 0:02:55]}  Ne7 {[%clk 0:01:55]} 5. Nf3 {[%clk 0:02:52]}  Ng6 {[%clk 0:01:55]} 6. Nc3 {[%clk 0:02:50]}  Bb4 {[%clk 0:01:54]} 7. Bd2 {[%clk 0:02:50]}  O-O {[%clk 0:01:53]} 8. a3 {[%clk 0:02:49]}  Bxc3 {[%clk 0:01:52]} 9. Bxc3 {[%clk 0:02:48]}  d6 {[%clk 0:01:53]} 10. Qc2 {[%clk 0:02:43]}  c6 {[%clk 0:01:47]} 11. dxc6 {[%clk 0:02:36]}  bxc6 {[%clk 0:01:48]} 12. Rd1 {[%clk 0:02:35]}  Qc7 {[%clk 0:01:46]} 13. h4 {[%clk 0:02:25]}  Bg4 {[%clk 0:01:45]} 14. h5 {[%clk 0:02:18]}  Bxh5 {[%clk 0:01:44]} 15. Bd3 {[%clk 0:02:02]}  d5 {[%clk 0:01:38]} 16. cxd5 {[%clk 0:01:46]}  cxd5 {[%clk 0:01:37]} 17. Nxe5 {[%clk 0:01:41]}  Bxd1 {[%clk 0:01:30]} 18. Kxd1 {[%clk 0:01:41]}  Nxe5 {[%clk 0:01:30]} 19. Bxh7+ {[%clk 0:01:40]}  Kh8 {[%clk 0:01:29]} 20. Bf5+ {[%clk 0:01:33]}  Kg8 {[%clk 0:01:28]} 21. Bh7+ {[%clk 0:01:26]}  Kh8 {[%clk 0:01:27]} 22. Bf5+ {[%clk 0:01:19]}  Nh7 {[%clk 0:01:03]} 23. Bxh7 {[%clk 0:01:12]}  g6 {[%clk 0:01:03]} 24. f4 {[%clk 0:01:06]}  f6 {[%clk 0:00:49]} 25. fxe5 {[%clk 0:01:04]}  fxe5 {[%clk 0:00:47]} 26. Qxg6 {[%clk 0:00:58]}  Qg7 {[%clk 0:00:32]} 27. Bxe5 {[%clk 0:00:55]}  Qxe5 {[%clk 0:00:27]} 28. Bg8+ {[%clk 0:00:54]} 1-0


[Site "https://www.chess.com"]

[Event "Titled Tuesday Blitz April 19 Early 2022"]
[White "Bashirli, Saadat"]
[Black "Reprintsev, Alexander"]
[WhiteFideId "13429990"]
[BlackFideId "14100541"]
[WhiteElo "1173"]
[BlackElo "2108"]
[Result "0-1"]
[Round "06"]
[TimeControl "180+1"]
[Date "2022.04.19"]
[WhiteClock "0:01:39"]
[BlackClock "0:01:57"]

1. d4 {[%clk 0:03:00]}  d5 {[%clk 0:02:47]} 2. Bg5 {[%clk 0:03:00]}  Nc6 {[%clk 0:02:47]} 3. Nf3 {[%clk 0:02:56]}  f6 {[%clk 0:02:47]} 4. Bf4 {[%clk 0:02:54]}  Bg4 {[%clk 0:02:44]} 5. e3 {[%clk 0:02:44]}  e5 {[%clk 0:02:43]} 6. dxe5 {[%clk 0:02:23]}  fxe5 {[%clk 0:02:43]} 7. Bg5 {[%clk 0:02:16]}  Bxf3 {[%clk 0:02:36]} 8. Qxf3 {[%clk 0:02:14]}  Qxg5 {[%clk 0:02:35]} 9. Qxd5 {[%clk 0:02:14]}  Nf6 {[%clk 0:02:24]} 10. Qe6+ {[%clk 0:02:14]}  Be7 {[%clk 0:02:23]} 11. Bc4 {[%clk 0:02:05]}  Qxg2 {[%clk 0:02:16]} 12. Qf7+ {[%clk 0:02:01]}  Kd8 {[%clk 0:02:16]} 13. Rf1 {[%clk 0:01:53]}  Qg6 {[%clk 0:02:14]} 14. Qe6 {[%clk 0:01:53]}  Nd7 {[%clk 0:02:07]} 15. Qd5 {[%clk 0:01:49]}  Nb4 {[%clk 0:02:02]} 16. Qd2 {[%clk 0:01:41]}  Nxc2+ {[%clk 0:02:01]} 17. Ke2 {[%clk 0:01:42]}  Nxa1 {[%clk 0:02:01]} 18. Nc3 {[%clk 0:01:41]}  Qg4+ {[%clk 0:01:58]} 19. f3 {[%clk 0:01:39]}  Qxc4+ {[%clk 0:01:57]} 0-1


[Site "https://www.chess.com"]

[Event "Titled Tuesday Blitz April 19 Early 2022"]
[White "Belenkaya, Dina"]
[Black "Ning, Kaiyu"]
[WhiteFideId "24142654"]
[BlackFideId "8614750"]
[WhiteElo "2196"]
[BlackElo "2013"]
[Result "0-1"]
[Round "06"]
[TimeControl "180+1"]
[Date "2022.04.19"]
[WhiteClock "0:00:46"]
[BlackClock "0:00:27"]

1. e4 {[%clk 0:03:00]}  c5 {[%clk 0:02:59]} 2. Nc3 {[%clk 0:02:59]}  d6 {[%clk 0:02:57]} 3. Nf3 {[%clk 0:02:59]}  Nf6 {[%clk 0:02:56]} 4. g3 {[%clk 0:02:57]}  Nc6 {[%clk 0:02:52]} 5. Bg2 {[%clk 0:02:56]}  g6 {[%clk 0:02:48]} 6. O-O {[%clk 0:02:56]}  Bg7 {[%clk 0:02:48]} 7. d3 {[%clk 0:02:54]}  Rb8 {[%clk 0:02:48]} 8. h3 {[%clk 0:02:54]}  b5 {[%clk 0:02:47]} 9. Be3 {[%clk 0:02:54]}  b4 {[%clk 0:02:46]} 10. Nd5 {[%clk 0:02:54]}  O-O {[%clk 0:02:38]} 11. Qd2 {[%clk 0:02:52]}  a5 {[%clk 0:02:13]} 12. Bh6 {[%clk 0:02:33]}  e6 {[%clk 0:01:56]} 13. Bxg7 {[%clk 0:02:28]}  Kxg7 {[%clk 0:01:56]} 14. Ne3 {[%clk 0:02:17]}  d5 {[%clk 0:01:53]} 15. e5 {[%clk 0:02:17]}  Nd7 {[%clk 0:01:52]} 16. Ng4 {[%clk 0:02:18]}  Kh8 {[%clk 0:01:22]} 17. Qh6 {[%clk 0:02:13]}  Rg8 {[%clk 0:01:21]} 18. Ng5 {[%clk 0:02:12]}  Rg7 {[%clk 0:01:21]} 19. f4 {[%clk 0:02:07]}  Ne7 {[%clk 0:01:20]} 20. Nf6 {[%clk 0:02:04]}  Nf5 {[%clk 0:01:16]} 21. Nxf7+ {[%clk 0:01:18]}  Rxf7 {[%clk 0:01:15]} 22. Qg5 {[%clk 0:01:18]}  Nxf6 {[%clk 0:01:16]} 23. g4 {[%clk 0:01:11]}  Ne3 {[%clk 0:01:00]} 24. Rf3 {[%clk 0:01:10]}  Nxg2 {[%clk 0:00:54]} 25. f5 {[%clk 0:01:04]}  exf5 {[%clk 0:00:50]} 26. Kxg2 {[%clk 0:00:59]}  Bb7 {[%clk 0:00:34]} 27. e6 {[%clk 0:00:53]}  Rf8 {[%clk 0:00:30]} 28. Kh2 {[%clk 0:00:52]}  Qd6+ {[%clk 0:00:29]} 29. Kg1 {[%clk 0:00:49]}  Qxe6 {[%clk 0:00:27]} 30. gxf5 {[%clk 0:00:48]}  gxf5 {[%clk 0:00:27]} 31. Raf1 {[%clk 0:00:46]}  Rg8 {[%clk 0:00:27]} 0-1


[Site "https://www.chess.com"]

[Event "Titled Tuesday Blitz April 19 Early 2022"]
[White "Biletskiy, Danylo"]
[Black "Kahlert, Thomas"]
[WhiteFideId "14155419"]
[BlackFideId "4625242"]
[WhiteElo "2087"]
[BlackElo "2228"]
[Result "1-0"]
[Round "06"]
[TimeControl "180+1"]
[Date "2022.04.19"]
[WhiteClock "0:00:55"]
[BlackClock "0:00:58"]

1. e4 {[%clk 0:03:00]}  e5 {[%clk 0:02:58]} 2. Nf3 {[%clk 0:03:01]}  Nc6 {[%clk 0:02:52]} 3. d4 {[%clk 0:03:01]}  exd4 {[%clk 0:02:51]} 4. Bc4 {[%clk 0:03:01]}  Nf6 {[%clk 0:02:50]} 5. e5 {[%clk 0:02:59]}  Ne4 {[%clk 0:02:50]} 6. Qe2 {[%clk 0:02:51]}  Nc5 {[%clk 0:02:46]} 7. O-O {[%clk 0:02:51]}  Be7 {[%clk 0:02:45]} 8. Rd1 {[%clk 0:02:49]}  Ne6 {[%clk 0:02:45]} 9. c3 {[%clk 0:02:48]}  d5 {[%clk 0:02:43]} 10. exd6 {[%clk 0:02:30]}  Qxd6 {[%clk 0:02:33]} 11. cxd4 {[%clk 0:02:23]}  Ncxd4 {[%clk 0:02:24]} 12. Nxd4 {[%clk 0:02:21]}  Nxd4 {[%clk 0:02:23]} 13. Qe4 {[%clk 0:02:07]}  c5 {[%clk 0:02:12]} 14. Bf4 {[%clk 0:01:53]}  Qc6 {[%clk 0:01:39]} 15. Bd5 {[%clk 0:01:34]}  Qg6 {[%clk 0:01:39]} 16. Bxb7 {[%clk 0:01:29]}  Bxb7 {[%clk 0:01:39]} 17. Qxb7 {[%clk 0:01:28]}  O-O {[%clk 0:01:37]} 18. Qxe7 {[%clk 0:01:21]}  Nc2 {[%clk 0:01:18]} 19. Nc3 {[%clk 0:01:14]}  Nxa1 {[%clk 0:01:17]} 20. Rxa1 {[%clk 0:01:14]}  Qc2 {[%clk 0:01:14]} 21. Qe2 {[%clk 0:01:11]}  Qxe2 {[%clk 0:01:12]} 22. Nxe2 {[%clk 0:01:12]}  Rfe8 {[%clk 0:01:10]} 23. Be3 {[%clk 0:01:12]}  Rab8 {[%clk 0:01:09]} 24. b3 {[%clk 0:01:11]}  Rec8 {[%clk 0:01:08]} 25. Rc1 {[%clk 0:01:09]}  c4 {[%clk 0:01:08]} 26. bxc4 {[%clk 0:01:07]}  Rb2 {[%clk 0:01:08]} 27. Kf1 {[%clk 0:00:56]}  Rxa2 {[%clk 0:01:07]} 28. c5 {[%clk 0:00:56]}  Rc6 {[%clk 0:01:04]} 29. Nd4 {[%clk 0:00:55]}  Rc8 {[%clk 0:01:01]} 30. c6 {[%clk 0:00:55]}  f6 {[%clk 0:01:01]} 31. c7 {[%clk 0:00:56]}  Kf7 {[%clk 0:00:58]} 32. Nb5 {[%clk 0:00:55]} 1-0


[Site "https://www.chess.com"]

[Event "Titled Tuesday Blitz April 19 Early 2022"]
[White "Bluebaum, Matthias"]
[Black "Visakh N R"]
[WhiteFideId "24651516"]
[BlackFideId "25012223"]
[WhiteElo "2550"]
[BlackElo "2448"]
[Result "1-0"]
[Round "06"]
[TimeControl "180+1"]
[Date "2022.04.19"]
[WhiteClock "0:01:13"]
[BlackClock "0:01:53"]

1. d4 {[%clk 0:03:00]}  Nf6 {[%clk 0:02:59]} 2. c4 {[%clk 0:03:01]}  e6 {[%clk 0:02:57]} 3. Nc3 {[%clk 0:03:00]}  d5 {[%clk 0:02:55]} 4. cxd5 {[%clk 0:03:00]}  exd5 {[%clk 0:02:55]} 5. Bg5 {[%clk 0:02:59]}  Be7 {[%clk 0:02:54]} 6. e3 {[%clk 0:02:59]}  c6 {[%clk 0:02:53]} 7. Bd3 {[%clk 0:03:00]}  O-O {[%clk 0:02:53]} 8. h3 {[%clk 0:03:00]}  Nbd7 {[%clk 0:02:53]} 9. Qc2 {[%clk 0:02:58]}  Re8 {[%clk 0:02:52]} 10. Nf3 {[%clk 0:02:58]}  Nf8 {[%clk 0:02:51]} 11. O-O {[%clk 0:02:58]}  Ng6 {[%clk 0:02:48]} 12. Ne5 {[%clk 0:02:58]}  Nd7 {[%clk 0:02:43]} 13. Bxe7 {[%clk 0:02:53]}  Qxe7 {[%clk 0:02:44]} 14. f4 {[%clk 0:02:52]}  Ndf8 {[%clk 0:02:44]} 15. Rae1 {[%clk 0:02:46]}  Nh8 {[%clk 0:02:38]} 16. e4 {[%clk 0:02:37]}  dxe4 {[%clk 0:02:35]} 17. Bxe4 {[%clk 0:02:29]}  Qd8 {[%clk 0:02:33]} 18. d5 {[%clk 0:02:18]}  cxd5 {[%clk 0:02:32]} 19. Nxd5 {[%clk 0:02:06]}  Be6 {[%clk 0:02:29]} 20. Rd1 {[%clk 0:02:06]}  Rc8 {[%clk 0:02:26]} 21. Qa4 {[%clk 0:01:56]}  a6 {[%clk 0:02:23]} 22. Qb4 {[%clk 0:01:52]}  b5 {[%clk 0:02:17]} 23. a4 {[%clk 0:01:33]}  bxa4 {[%clk 0:02:12]} 24. Nb6 {[%clk 0:01:28]}  a5 {[%clk 0:02:02]} 25. Rxd8 {[%clk 0:01:15]}  axb4 {[%clk 0:02:01]} 26. Nxc8 {[%clk 0:01:14]}  Rxd8 {[%clk 0:01:53]} 27. Ne7# {[%clk 0:01:13]} 1-0


[Site "https://www.chess.com"]

[Event "Titled Tuesday Blitz April 19 Early 2022"]
[White "Derraugh, Geordie"]
[Black "Murthy, Pappu"]
[WhiteFideId "2603950"]
[BlackFideId "2013401"]
[WhiteElo "2116"]
[BlackElo "1934"]
[Result "1/2-1/2"]
[Round "06"]
[TimeControl "180+1"]
[Date "2022.04.19"]
[WhiteClock "0:00:49"]
[BlackClock "0:00:21"]

1. e4 {[%clk 0:03:00]}  e6 {[%clk 0:02:58]} 2. d4 {[%clk 0:03:00]}  d5 {[%clk 0:02:58]} 3. exd5 {[%clk 0:03:01]}  exd5 {[%clk 0:02:58]} 4. Nf3 {[%clk 0:03:00]}  Nf6 {[%clk 0:02:56]} 5. Bd3 {[%clk 0:03:00]}  c5 {[%clk 0:02:56]} 6. c3 {[%clk 0:03:00]}  c4 {[%clk 0:02:56]} 7. Bc2 {[%clk 0:03:00]}  Bd6 {[%clk 0:02:54]} 8. b3 {[%clk 0:02:59]}  cxb3 {[%clk 0:02:51]} 9. axb3 {[%clk 0:03:00]}  O-O {[%clk 0:02:51]} 10. O-O {[%clk 0:03:01]}  h6 {[%clk 0:02:51]} 11. h3 {[%clk 0:02:59]}  Nc6 {[%clk 0:02:51]} 12. Be3 {[%clk 0:02:59]}  Re8 {[%clk 0:02:50]} 13. Nbd2 {[%clk 0:02:59]}  Qc7 {[%clk 0:02:47]} 14. Rc1 {[%clk 0:02:58]}  Ne4 {[%clk 0:02:33]} 15. Bb1 {[%clk 0:02:49]}  Bf5 {[%clk 0:02:27]} 16. c4 {[%clk 0:02:46]}  dxc4 {[%clk 0:02:22]} 17. bxc4 {[%clk 0:02:45]}  Nxd2 {[%clk 0:02:20]} 18. Qxd2 {[%clk 0:02:24]}  Bxb1 {[%clk 0:02:18]} 19. Rxb1 {[%clk 0:02:25]}  Rad8 {[%clk 0:02:08]} 20. Rfc1 {[%clk 0:02:19]}  b6 {[%clk 0:02:06]} 21. Qc2 {[%clk 0:02:15]}  Bf4 {[%clk 0:02:01]} 22. Bxf4 {[%clk 0:01:50]}  Qxf4 {[%clk 0:02:01]} 23. d5 {[%clk 0:01:49]}  Nd4 {[%clk 0:01:51]} 24. Nxd4 {[%clk 0:01:46]}  Qxd4 {[%clk 0:01:50]} 25. Rd1 {[%clk 0:01:47]}  Qc5 {[%clk 0:01:44]} 26. Rb5 {[%clk 0:01:46]}  Qc7 {[%clk 0:01:42]} 27. c5 {[%clk 0:01:43]}  Rxd5 {[%clk 0:01:29]} 28. Rc1 {[%clk 0:01:25]}  Rxc5 {[%clk 0:01:20]} 29. Rxc5 {[%clk 0:01:25]}  bxc5 {[%clk 0:01:18]} 30. g3 {[%clk 0:01:24]}  Rc8 {[%clk 0:01:16]} 31. Qc4 {[%clk 0:01:21]}  g6 {[%clk 0:01:12]} 32. Ra1 {[%clk 0:01:19]}  Kg7 {[%clk 0:01:10]} 33. Ra6 {[%clk 0:01:19]}  Rb8 {[%clk 0:00:58]} 34. Qc3+ {[%clk 0:01:15]}  Kh7 {[%clk 0:00:57]} 35. Qa3 {[%clk 0:00:52]}  Rb7 {[%clk 0:00:46]} 36. Ra5 {[%clk 0:00:52]}  c4 {[%clk 0:00:45]} 37. Rc5 {[%clk 0:00:52]}  Rb3 {[%clk 0:00:23]} 38. Rxc7 {[%clk 0:00:49]}  Rxa3 {[%clk 0:00:22]} 39. Rxc4 {[%clk 0:00:49]}  Kg7 {[%clk 0:00:21]} 40. Rc7 {[%clk 0:00:49]} 1/2-1/2


[Site "https://www.chess.com"]

[Event "Titled Tuesday Blitz April 19 Early 2022"]
[White "Dev, Shah"]
[Black "Avalos Parra, Joao"]
[WhiteFideId "35019058"]
[BlackFideId "3402541"]
[WhiteElo "2075"]
[BlackElo "2173"]
[Result "1-0"]
[Round "06"]
[TimeControl "180+1"]
[Date "2022.04.19"]
[WhiteClock "0:01:40"]
[BlackClock "0:00:12"]

1. d4 {[%clk 0:03:00]}  d5 {[%clk 0:02:59]} 2. c4 {[%clk 0:02:52]}  c6 {[%clk 0:02:58]} 3. Nf3 {[%clk 0:02:52]}  Nf6 {[%clk 0:02:58]} 4. g3 {[%clk 0:02:53]}  Bf5 {[%clk 0:02:44]} 5. Nc3 {[%clk 0:02:52]}  h6 {[%clk 0:02:45]} 6. Bg2 {[%clk 0:02:51]}  e6 {[%clk 0:02:45]} 7. O-O {[%clk 0:02:51]}  Be7 {[%clk 0:02:45]} 8. Ne5 {[%clk 0:02:45]}  O-O {[%clk 0:02:44]} 9. f4 {[%clk 0:02:42]}  c5 {[%clk 0:02:39]} 10. e3 {[%clk 0:02:41]}  Nc6 {[%clk 0:02:39]} 11. cxd5 {[%clk 0:02:40]}  exd5 {[%clk 0:02:35]} 12. h3 {[%clk 0:02:36]}  cxd4 {[%clk 0:02:32]} 13. exd4 {[%clk 0:02:37]}  Rc8 {[%clk 0:02:24]} 14. Be3 {[%clk 0:02:35]}  Ne4 {[%clk 0:02:16]} 15. g4 {[%clk 0:02:33]}  Nxc3 {[%clk 0:01:54]} 16. bxc3 {[%clk 0:02:32]}  Be4 {[%clk 0:01:55]} 17. Bxe4 {[%clk 0:02:27]}  dxe4 {[%clk 0:01:56]} 18. Qc2 {[%clk 0:02:27]}  Nxd4 {[%clk 0:01:49]} 19. Qxe4 {[%clk 0:02:21]}  Ne2+ {[%clk 0:01:42]} 20. Kh2 {[%clk 0:02:18]}  Nxc3 {[%clk 0:01:42]} 21. Qxb7 {[%clk 0:02:18]}  Nd5 {[%clk 0:01:36]} 22. Rfd1 {[%clk 0:02:03]}  Rc2+ {[%clk 0:01:32]} 23. Kh1 {[%clk 0:02:02]}  Nxe3 {[%clk 0:00:57]} 24. Rxd8 {[%clk 0:02:00]}  Bxd8 {[%clk 0:00:58]} 25. Qe4 {[%clk 0:01:53]}  Rc3 {[%clk 0:00:52]} 26. Qd4 {[%clk 0:01:51]}  Ra3 {[%clk 0:00:48]} 27. Qc5 {[%clk 0:01:45]}  Nc4 {[%clk 0:00:13]} 28. Qxc4 {[%clk 0:01:42]}  Rxh3+ {[%clk 0:00:13]} 29. Kg2 {[%clk 0:01:43]}  Re3 {[%clk 0:00:12]} 30. Rd1 {[%clk 0:01:41]}  Bb6 {[%clk 0:00:12]} 31. Rd7 {[%clk 0:01:40]} 1-0


[Site "https://www.chess.com"]

[Event "Titled Tuesday Blitz April 19 Early 2022"]
[White "Wagner, Dinara"]
[Black "Baker, Chris W"]
[WhiteFideId "24157570"]
[BlackFideId "401676"]
[WhiteElo "2216"]
[BlackElo "2208"]
[Result "1-0"]
[Round "06"]
[TimeControl "180+1"]
[Date "2022.04.19"]
[WhiteClock "0:00:53"]
[BlackClock "0:00:15"]

1. d4 {[%clk 0:02:59]}  Nf6 {[%clk 0:02:59]} 2. c4 {[%clk 0:02:59]}  e6 {[%clk 0:02:59]} 3. Nf3 {[%clk 0:02:59]}  b6 {[%clk 0:02:57]} 4. a3 {[%clk 0:02:59]}  Bb7 {[%clk 0:02:56]} 5. Nc3 {[%clk 0:02:59]}  Be7 {[%clk 0:02:55]} 6. d5 {[%clk 0:02:58]}  exd5 {[%clk 0:02:51]} 7. cxd5 {[%clk 0:02:59]}  O-O {[%clk 0:02:51]} 8. e4 {[%clk 0:02:59]}  d6 {[%clk 0:02:46]} 9. Bd3 {[%clk 0:02:58]}  Nbd7 {[%clk 0:02:45]} 10. Bc2 {[%clk 0:02:56]}  a5 {[%clk 0:02:44]} 11. O-O {[%clk 0:02:56]}  Nc5 {[%clk 0:02:43]} 12. Nd4 {[%clk 0:02:54]}  Qd7 {[%clk 0:02:38]} 13. Nf5 {[%clk 0:02:48]}  Rfe8 {[%clk 0:02:36]} 14. Nxe7+ {[%clk 0:02:44]}  Qxe7 {[%clk 0:02:29]} 15. f3 {[%clk 0:02:42]}  h6 {[%clk 0:02:21]} 16. Kh1 {[%clk 0:02:39]}  Ba6 {[%clk 0:02:13]} 17. Re1 {[%clk 0:02:39]}  Ncd7 {[%clk 0:01:48]} 18. Be3 {[%clk 0:02:36]}  Ne5 {[%clk 0:01:47]} 19. Bd4 {[%clk 0:02:34]}  Ng6 {[%clk 0:01:42]} 20. Qd2 {[%clk 0:02:31]}  Nd7 {[%clk 0:01:40]} 21. Ba4 {[%clk 0:02:31]}  Rf8 {[%clk 0:01:36]} 22. Bb5 {[%clk 0:02:26]}  Bxb5 {[%clk 0:01:34]} 23. Nxb5 {[%clk 0:02:27]}  Nde5 {[%clk 0:01:34]} 24. Rac1 {[%clk 0:02:24]}  Rac8 {[%clk 0:01:33]} 25. Rc2 {[%clk 0:02:21]}  Qh4 {[%clk 0:01:32]} 26. Rec1 {[%clk 0:02:19]}  Nf4 {[%clk 0:01:17]} 27. Nxd6 {[%clk 0:02:05]}  cxd6 {[%clk 0:00:55]} 28. Rxc8 {[%clk 0:02:04]}  Rxc8 {[%clk 0:00:48]} 29. Rxc8+ {[%clk 0:02:04]}  Kh7 {[%clk 0:00:49]} 30. Be3 {[%clk 0:01:47]}  Nxf3 {[%clk 0:00:39]} 31. gxf3 {[%clk 0:01:37]}  Qh3 {[%clk 0:00:39]} 32. Qf2 {[%clk 0:00:57]}  Nd3 {[%clk 0:00:31]} 33. Qe2 {[%clk 0:00:56]}  Qxc8 {[%clk 0:00:20]} 34. Qxd3 {[%clk 0:00:56]}  Qh3 {[%clk 0:00:15]} 35. Bxb6 {[%clk 0:00:53]} 1-0


[Site "https://www.chess.com"]

[Event "Titled Tuesday Blitz April 19 Early 2022"]
[White "Dreev, Aleksey"]
[Black "Karolczuk, Iwo"]
[WhiteFideId "4100107"]
[BlackFideId "21816972"]
[WhiteElo "2625"]
[BlackElo "2277"]
[Result "0-1"]
[Round "06"]
[TimeControl "180+1"]
[Date "2022.04.19"]
[WhiteClock "0:00:11"]
[BlackClock "0:00:09"]

1. d4 {[%clk 0:03:00]}  Nf6 {[%clk 0:02:58]} 2. Nf3 {[%clk 0:03:00]}  g6 {[%clk 0:02:58]} 3. Bf4 {[%clk 0:02:59]}  Bg7 {[%clk 0:02:58]} 4. e3 {[%clk 0:03:00]}  O-O {[%clk 0:02:57]} 5. Be2 {[%clk 0:03:01]}  b6 {[%clk 0:02:55]} 6. O-O {[%clk 0:03:00]}  Bb7 {[%clk 0:02:56]} 7. h3 {[%clk 0:03:00]}  d6 {[%clk 0:02:56]} 8. c4 {[%clk 0:03:00]}  Nbd7 {[%clk 0:02:55]} 9. Nc3 {[%clk 0:03:00]}  Ne4 {[%clk 0:02:55]} 10. Nxe4 {[%clk 0:02:59]}  Bxe4 {[%clk 0:02:56]} 11. Bg5 {[%clk 0:02:57]}  Bb7 {[%clk 0:02:53]} 12. Rc1 {[%clk 0:02:51]}  c5 {[%clk 0:02:50]} 13. Qd2 {[%clk 0:02:49]}  cxd4 {[%clk 0:02:47]} 14. exd4 {[%clk 0:02:48]}  Nf6 {[%clk 0:02:46]} 15. Bh6 {[%clk 0:02:45]}  Rc8 {[%clk 0:02:44]} 16. b3 {[%clk 0:02:43]}  Qd7 {[%clk 0:02:40]} 17. Bxg7 {[%clk 0:02:40]}  Kxg7 {[%clk 0:02:40]} 18. Rfe1 {[%clk 0:02:41]}  Rfe8 {[%clk 0:02:36]} 19. a4 {[%clk 0:02:39]}  e5 {[%clk 0:02:24]} 20. d5 {[%clk 0:02:39]}  Ne4 {[%clk 0:02:17]} 21. Qe3 {[%clk 0:02:38]}  f5 {[%clk 0:02:17]} 22. Bd3 {[%clk 0:02:31]}  Nc5 {[%clk 0:02:00]} 23. Bc2 {[%clk 0:02:31]}  a5 {[%clk 0:01:58]} 24. Qc3 {[%clk 0:02:25]}  h6 {[%clk 0:01:57]} 25. Rb1 {[%clk 0:02:19]}  Na6 {[%clk 0:01:57]} 26. Rbd1 {[%clk 0:02:07]}  Nb4 {[%clk 0:01:56]} 27. Bb1 {[%clk 0:02:00]}  Qf7 {[%clk 0:01:56]} 28. Qe3 {[%clk 0:01:59]}  Rc5 {[%clk 0:01:50]} 29. h4 {[%clk 0:01:59]}  Qf6 {[%clk 0:01:48]} 30. Nd4 {[%clk 0:01:56]}  Bc8 {[%clk 0:01:43]} 31. h5 {[%clk 0:01:45]}  g5 {[%clk 0:01:26]} 32. g4 {[%clk 0:01:44]}  e4 {[%clk 0:00:59]} 33. gxf5 {[%clk 0:01:36]}  Bxf5 {[%clk 0:00:58]} 34. Nxf5+ {[%clk 0:01:04]}  Qxf5 {[%clk 0:00:59]} 35. Bxe4 {[%clk 0:01:02]}  Qg4+ {[%clk 0:00:55]} 36. Kf1 {[%clk 0:01:02]}  Rc7 {[%clk 0:00:39]} 37. Bf5 {[%clk 0:00:46]}  Qxf5 {[%clk 0:00:17]} 38. Qxe8 {[%clk 0:00:45]}  Qh3+ {[%clk 0:00:17]} 39. Ke2 {[%clk 0:00:37]}  Qg4+ {[%clk 0:00:15]} 40. Kf1 {[%clk 0:00:34]}  Qh3+ {[%clk 0:00:15]} 41. Ke2 {[%clk 0:00:33]}  Qg4+ {[%clk 0:00:15]} 42. f3 {[%clk 0:00:29]}  Qg2+ {[%clk 0:00:13]} 43. Ke3 {[%clk 0:00:30]}  Nc2+ {[%clk 0:00:13]} 44. Kd3 {[%clk 0:00:30]}  Nxe1+ {[%clk 0:00:13]} 45. Rxe1 {[%clk 0:00:30]}  Qxf3+ {[%clk 0:00:13]} 46. Re3 {[%clk 0:00:28]}  Qd1+ {[%clk 0:00:13]} 47. Kc3 {[%clk 0:00:26]}  Qc1+ {[%clk 0:00:13]} 48. Kd3 {[%clk 0:00:27]}  Qd1+ {[%clk 0:00:13]} 49. Kc3 {[%clk 0:00:25]}  Qc1+ {[%clk 0:00:13]} 50. Kd4 {[%clk 0:00:25]}  Qd2+ {[%clk 0:00:12]} 51. Rd3 {[%clk 0:00:24]}  Qf4+ {[%clk 0:00:12]} 52. Kc3 {[%clk 0:00:21]}  Qc1+ {[%clk 0:00:12]} 53. Kd4 {[%clk 0:00:22]}  Rf7 {[%clk 0:00:10]} 54. Re3 {[%clk 0:00:13]}  Qd2+ {[%clk 0:00:09]} 55. Rd3 {[%clk 0:00:11]}  Rf4+ {[%clk 0:00:09]} 0-1


[Site "https://www.chess.com"]

[Event "Titled Tuesday Blitz April 19 Early 2022"]
[White "Fromm, Marius"]
[Black "Kaasen, Tor Fredrik"]
[WhiteFideId "12993190"]
[BlackFideId "1516647"]
[WhiteElo "2498"]
[BlackElo "2335"]
[Result "1-0"]
[Round "06"]
[TimeControl "180+1"]
[Date "2022.04.19"]
[WhiteClock "0:00:18"]
[BlackClock "0:00:20"]

1. e4 {[%clk 0:03:00]}  c5 {[%clk 0:03:00]} 2. Nf3 {[%clk 0:03:00]}  d6 {[%clk 0:03:00]} 3. d4 {[%clk 0:03:01]}  cxd4 {[%clk 0:03:01]} 4. Nxd4 {[%clk 0:03:02]}  Nf6 {[%clk 0:03:02]} 5. Nc3 {[%clk 0:03:01]}  a6 {[%clk 0:03:02]} 6. g3 {[%clk 0:03:02]}  e5 {[%clk 0:03:02]} 7. Nde2 {[%clk 0:03:02]}  Be7 {[%clk 0:03:02]} 8. Bg2 {[%clk 0:03:03]}  O-O {[%clk 0:03:02]} 9. O-O {[%clk 0:03:03]}  b5 {[%clk 0:02:53]} 10. Nd5 {[%clk 0:03:03]}  Nxd5 {[%clk 0:02:53]} 11. Qxd5 {[%clk 0:03:04]}  Ra7 {[%clk 0:02:50]} 12. Be3 {[%clk 0:03:05]}  Be6 {[%clk 0:02:47]} 13. Qd3 {[%clk 0:03:05]}  Rb7 {[%clk 0:02:46]} 14. b3 {[%clk 0:03:04]}  Nd7 {[%clk 0:02:41]} 15. Nc3 {[%clk 0:03:03]}  Nf6 {[%clk 0:02:38]} 16. a4 {[%clk 0:03:01]}  b4 {[%clk 0:02:34]} 17. Qxa6 {[%clk 0:02:52]}  Rc7 {[%clk 0:02:10]} 18. Na2 {[%clk 0:02:41]}  d5 {[%clk 0:02:08]} 19. Bb6 {[%clk 0:02:35]}  Qd6 {[%clk 0:02:07]} 20. Qb5 {[%clk 0:02:19]}  Rb7 {[%clk 0:02:02]} 21. a5 {[%clk 0:02:19]}  Bd7 {[%clk 0:01:39]} 22. Qe2 {[%clk 0:02:01]}  dxe4 {[%clk 0:01:37]} 23. Rfd1 {[%clk 0:01:59]}  Qc6 {[%clk 0:01:34]} 24. h3 {[%clk 0:01:34]}  Rc8 {[%clk 0:01:34]} 25. Rd2 {[%clk 0:01:32]}  h5 {[%clk 0:01:16]} 26. Rad1 {[%clk 0:01:25]}  Bc5 {[%clk 0:01:03]} 27. Bxc5 {[%clk 0:01:09]}  Qxc5 {[%clk 0:01:04]} 28. Bxe4 {[%clk 0:00:53]}  Ra7 {[%clk 0:01:04]} 29. a6 {[%clk 0:00:36]}  Bxh3 {[%clk 0:01:04]} 30. Rd8+ {[%clk 0:00:35]}  Ne8 {[%clk 0:00:56]} 31. Rxc8 {[%clk 0:00:34]}  Qxc8 {[%clk 0:00:56]} 32. Nxb4 {[%clk 0:00:34]}  Bg4 {[%clk 0:00:51]} 33. f3 {[%clk 0:00:34]}  Qc5+ {[%clk 0:00:51]} 34. Qf2 {[%clk 0:00:32]}  Qxb4 {[%clk 0:00:43]} 35. Qxa7 {[%clk 0:00:32]}  Qc3 {[%clk 0:00:36]} 36. Qf2 {[%clk 0:00:25]}  f5 {[%clk 0:00:31]} 37. Bd5+ {[%clk 0:00:23]}  Kh7 {[%clk 0:00:30]} 38. fxg4 {[%clk 0:00:23]}  Nf6 {[%clk 0:00:29]} 39. Qxf5+ {[%clk 0:00:22]}  g6 {[%clk 0:00:26]} 40. Qxf6 {[%clk 0:00:23]}  Qxg3+ {[%clk 0:00:26]} 41. Bg2 {[%clk 0:00:21]}  Qe3+ {[%clk 0:00:26]} 42. Qf2 {[%clk 0:00:21]}  Qg5 {[%clk 0:00:22]} 43. gxh5 {[%clk 0:00:20]}  gxh5 {[%clk 0:00:21]} 44. a7 {[%clk 0:00:20]}  Qg4 {[%clk 0:00:22]} 45. Re1 {[%clk 0:00:18]}  h4 {[%clk 0:00:20]} 46. a8=Q {[%clk 0:00:18]}  h3 {[%clk 0:00:21]} 47. Qe4+ {[%clk 0:00:18]}  Qxe4 {[%clk 0:00:20]} 48. Bxe4+ {[%clk 0:00:18]} 1-0


[Site "https://www.chess.com"]